[Event "Turkish Super League 2019"]
[Site "Konya"]
[Date "2019.07.26"]
[Round "11"]
[White "Haznedaroglu, Kivanc"]
[Black "Arat, Ufuk Sezen"]
[Result "1-0"]
[ECO "C22"]
[WhiteElo "2448"]
[BlackElo "2376"]
[Annotator "NA"]
[PlyCount "87"]
[EventDate "2019.07.17"]
[EventType "team-tourn"]
[EventCountry "TUR"]
[SourceTitle "playchess.com"]
[Source "ChessBase"]
[SourceQuality "1"]
[TimeControl "40/5400+30:1800+30"]

1. e4 e5 2. d4 exd4 3. Qxd4 Nc6 4. Qe3 g6 5. Nc3 Bg7 6. Bd2 Nf6 7. e5 Ng4 8. Qg3 d6 9. h3 Nh6 10. exd6 Nf5 11. Qh2 cxd6 12. O-O-O Be6 13. Nge2 d5 {[%emt 1:11:30]} 14. g4 {[%emt 0:54:00]} Nd6 {[%emt 0:00:30]} 15. Nf4 {[%emt 0:00:30]} Qd7 {[%emt 0:05:53]} 16. Nfxd5 {[%emt 0:04:30]} O-O {[%emt 0:02:27]} 17. Bf4 {[%emt 0:02:30]} Nd4 {[%emt 0:02:53]} 18. Be5 {[%emt 0:05:30]} Bxd5 {[%emt 0:05:24]} 19. Nxd5 {[%emt 0:01:30]} N6b5 {[%emt 0:01:18]} 20. Bc4 {[%emt 0:06:30]} Rfe8 {[%emt 0:04:28]} 21. Bxg7 {[%emt 0:02:30]} Kxg7 {[%emt 0:00:34]} 22. Bxb5 {[%emt 0:00:30]} Qxd5 {[%emt 0:01:39]} 23. Bxe8 {[%emt 0:00:30]} Rxe8 {[%emt 0:00:42]} 24. Kb1 {[%emt 0:02:30]} Qc4 {[%emt 0:01:54]} 25. c3 {[%emt 0:04:48]} Nb5 {[%emt 0:00:44]} 26. Rd2 {[%emt 0:02:47]} a5 {[%emt 0:01:51]} 27. Rc1 {[%emt 0:01:35]} a4 {[%emt 0:00:06]} 28. Qg3 {[%emt 0:01:37]} a3 {[%emt 0:00:03]} 29. b3 {[%emt 0:02:54]} Qc6 {[%emt 0:00:04]} 30. c4 {[%emt 0:04:12]} Nc7 {[%emt 0:00:09]} 31. Qc3+ {[%emt 0:00:15]} Kg8 {[%emt 0:00:11]} 32. Rcd1 {[%emt 0:00:57]} Nb5 {[%emt 0:00:30]} 33. Qd3 {[%emt 0:00:25]} Nc7 {[%emt 0:00:00]} 34. f4 {[%emt 0:01:21]} Ne6 {[%emt 0:01:08]} 35. Qd5 {[%emt 0:00:46]} Qc7 {[%emt 0:01:02]} 36. f5 {[%emt 0:00:10]} Nc5 {[%emt 0:00:33]} 37. f6 {[%emt 0:01:45]} h6 {[%emt 0:00:16]} 38. Qd6 {[%emt 0:00:14]} Qc8 {[%emt 0:01:40]} 39. Qd8 {[%emt 0:02:25]} Kh7 {[%emt 0:00:00]} 40. Qxc8 {[%emt 0:00:00]} Rxc8 {[%emt 0:00:00]} 41. Rd8 {[%emt 0:03:19]} Rc6 {[%emt 0:06:01]} 42. R1d6 {[%emt 0:00:30]} Rc7 {[%emt 0:00:00]} 43. b4 {[%emt 0:01:30]} Ne4 {[%emt 0:01:00]} 44. R6d7 {[%emt 0:00:30]} 1-0

[Event "Turkish Super League 2019"]
[Site "Konya"]
[Date "2019.07.26"]
[Round "11"]
[White "Daulyte-Cornette, Deimante"]
[Black "Atalik, Ekaterina"]
[Result "1/2-1/2"]
[ECO "C45"]
[WhiteElo "2444"]
[BlackElo "2459"]
[Annotator "ChessBase"]
[PlyCount "70"]
[EventDate "2019.07.17"]
[EventType "team-tourn"]
[EventCountry "TUR"]
[SourceTitle "playchess.com"]
[Source "ChessBase"]
[SourceQuality "1"]
[TimeControl "40/5400+30:1800+30"]

1. e4 e5 2. Nf3 Nc6 3. d4 exd4 4. Nxd4 Bb4+ 5. c3 Bc5 6. Be3 Bb6 7. Nf5 Bxe3 8. Nxe3 d6 9. c4 Nge7 10. Nc3 O-O 11. Bd3 Nd4 12. Bb1 c5 13. O-O a6 14. Nc2 Nec6 15. Nxd4 Nxd4 16. Ne2 Nc6 17. Bc2 b5 18. Bb3 b4 19. Qd2 Qf6 20. Rad1 Rd8 21. Ba4 Ne5 22. b3 g5 23. f4 {[%emt 1:12:30]} gxf4 {[%emt 0:53:30]} 24. Nxf4 {[%emt 0:00:30]} Qh6 {[%emt 0:00:30]} 25. Qf2 {[%emt 0:00:30]} Bb7 {[%emt 0:04:30]} 26. Nd3 {[%emt 0:09:30]} Qg6 {[%emt 0:04:30]} 27. Nxe5 {[%emt 0:07:59]} dxe5 {[%emt 0:00:00]} 28. Qxc5 {[%emt 0:00:33]} Bxe4 {[%emt 0:02:00]} 29. g3 {[%emt 0:03:19]} Rxd1 {[%emt 0:04:30]} 30. Rxd1 {[%emt 0:00:04]} Qh5 {[%emt 0:00:30]} 31. Rd2 {[%emt 0:01:05]} Qf3 {[%emt 0:06:30]} 32. Qxe5 {[%emt 0:00:54]} Qe3+ {[%emt 0:08:30]} 33. Rf2 {[%emt 0:00:08]} Qe1+ {[%emt 0:06:03]} 34. Rf1 {[%emt 0:00:06]} Qe3+ {[%emt 0:00:40]} 35. Rf2 {[%emt 0:00:04]} Qe1+ {[%emt 0:01:08]} 1/2-1/2

[Event "Turkish Super League 2019"]
[Site "Konya"]
[Date "2019.07.26"]
[Round "11"]
[White "Tsolakidou, Stavroula"]
[Black "Dordzhieva, Dinara"]
[Result "1-0"]
[ECO "B81"]
[WhiteElo "2423"]
[BlackElo "2306"]
[Annotator "NA"]
[PlyCount "87"]
[EventDate "2019.07.17"]
[EventType "team-tourn"]
[EventCountry "TUR"]
[SourceTitle "playchess.com"]
[Source "ChessBase"]
[SourceQuality "1"]
[TimeControl "40/5400+30:1800+30"]

1. e4 c5 2. Nf3 e6 3. d4 cxd4 4. Nxd4 Nf6 5. Nc3 d6 6. g4 h6 7. h3 a6 8. Bg2 Be7 9. f4 Nc6 10. Be3 Nd7 11. O-O O-O 12. Nf3 b5 13. Ne2 Bb7 14. Ng3 Rc8 15. Qe2 Na5 16. Rad1 b4 {[%emt 1:06:00]} 17. f5 {[%emt 1:01:30]} Nc4 {[%emt 0:00:30]} 18. Bc1 {[%emt 0:01:30]} e5 {[%emt 0:06:30]} 19. h4 {[%emt 0:19:17]} Bxh4 {[%emt 0:03:30]} 20. Nxh4 {[%emt 0:00:48]} Qxh4 {[%emt 0:00:00]} 21. g5 {[%emt 0:03:28]} Qxg3 {[%emt 0:07:26]} 22. Rd3 {[%emt 0:02:27]} Ne3 {[%emt 0:00:10]} 23. Rxe3 {[%emt 0:01:25]} Qxg5 {[%emt 0:00:03]} 24. Rh3 {[%emt 0:02:41]} Qf6 {[%emt 0:01:18]} 25. Qg4 {[%emt 0:02:37]} Rxc2 {[%emt 0:04:15]} 26. Bxh6 {[%emt 0:01:25]} d5 {[%emt 0:01:04]} 27. Kh1 {[%emt 0:01:23]} dxe4 {[%emt 0:11:24]} 28. Be3 {[%emt 0:00:04]} Rfc8 {[%emt 0:01:18]} 29. Qh5 {[%emt 0:01:06]} Kf8 {[%emt 0:00:04]} 30. Bg5 {[%emt 0:00:26]} Rxg2 {[%emt 0:00:53]} 31. Kxg2 {[%emt 0:02:34]} e3+ {[%emt 0:00:09]} 32. Kg1 {[%emt 0:01:03]} e2 {[%emt 0:00:40]} 33. Bxf6 {[%emt 0:01:41]} exf1=Q+ {[%emt 0:00:07]} 34. Kxf1 {[%emt 0:00:05]} gxf6 {[%emt 0:00:35]} 35. Qd1 {[%emt 0:01:12]} Ke7 {[%emt 0:00:16]} 36. Rh4 {[%emt 0:00:42]} a5 {[%emt 0:01:05]} 37. Qa4 {[%emt 0:00:17]} Rc5 {[%emt 0:00:31]} 38. a3 {[%emt 0:00:32]} Nb6 {[%emt 0:00:37]} 39. Qb3 {[%emt 0:00:17]} Bd5 {[%emt 0:00:34]} 40. Qe3 {[%emt 0:00:00]} Rc6 {[%emt 0:00:00]} 41. axb4 {[%emt 0:02:00]} a4 {[%emt 0:01:31]} 42. b5 {[%emt 0:08:30]} Rd6 {[%emt 0:00:30]} 43. Qc5 {[%emt 0:01:30]} Kd7 {[%emt 0:00:30]} 44. Rh8 {[%emt 0:00:30]} 1-0

[Event "Turkish Super League 2019"]
[Site "Konya"]
[Date "2019.07.26"]
[Round "11"]
[White "Ozen, Bahadir"]
[Black "Yaran, Siar"]
[Result "1/2-1/2"]
[ECO "E05"]
[WhiteElo "2366"]
[BlackElo "2197"]
[Annotator "NA"]
[PlyCount "61"]
[EventDate "2019.07.17"]
[EventType "team-tourn"]
[EventCountry "TUR"]
[SourceTitle "playchess.com"]
[Source "ChessBase"]
[SourceQuality "1"]
[TimeControl "40/5400+30:1800+30"]

1. Nf3 {[%emt 0:00:30]} Nf6 {[%emt 0:01:30]} 2. c4 {[%emt 0:00:30]} e6 {[%emt 0:02:30]} 3. d4 {[%emt 0:01:30]} d5 {[%emt 0:00:30]} 4. g3 {[%emt 0:01:30]} Be7 {[%emt 0:00:00]} 5. Bg2 {[%emt 0:00:30]} O-O {[%emt 0:00:00]} 6. O-O {[%emt 0:01:30]} dxc4 {[%emt 0:00:30]} 7. Qc2 {[%emt 0:02:30]} a6 {[%emt 0:00:30]} 8. a4 {[%emt 0:01:30]} Bd7 {[%emt 0:02:30]} 9. Ne5 {[%emt 0:04:30]} Bc6 {[%emt 0:06:30]} 10. Nxc6 {[%emt 0:02:30]} Nxc6 {[%emt 0:00:00]} 11. e3 {[%emt 0:00:30]} Na5 {[%emt 0:02:00]} 12. Nd2 {[%emt 0:03:30]} c5 {[%emt 0:05:30]} 13. dxc5 {[%emt 0:01:30]} Rc8 {[%emt 0:00:30]} 14. b4 {[%emt 0:01:30]} cxb3 {[%emt 0:00:30]} 15. Nxb3 {[%emt 0:00:30]} Nxb3 {[%emt 0:05:30]} 16. Qxb3 {[%emt 0:00:00]} Nd7 {[%emt 0:00:00]} 17. Ba3 {[%emt 0:05:00]} Nxc5 {[%emt 0:00:00]} 18. Bxc5 {[%emt 0:00:30]} Rxc5 {[%emt 0:00:30]} 19. Qxb7 {[%emt 0:00:30]} a5 {[%emt 0:00:30]} 20. Rfd1 {[%emt 0:00:30]} Qc7 {[%emt 0:01:30]} 21. Qxc7 {[%emt 0:09:30]} Rxc7 {[%emt 0:00:00]} 22. Rac1 {[%emt 0:00:00]} Rxc1 {[%emt 0:02:00]} 23. Rxc1 {[%emt 0:00:00]} g6 {[%emt 0:00:00]} 24. Bb7 {[%emt 0:00:30]} Rd8 {[%emt 0:01:00]} 25. Rc8 {[%emt 0:00:30]} Rxc8 {[%emt 0:00:30]} 26. Bxc8 {[%emt 0:00:00]} Bb4 {[%emt 0:00:30]} 27. Kf1 {[%emt 0:00:00]} Kf8 {[%emt 0:00:00]} 28. Ke2 {[%emt 0:00:00]} Ke7 {[%emt 0:00:00]} 29. f4 {[%emt 0:01:00]} Kd6 {[%emt 0:00:30]} 30. e4 {[%emt 0:00:00]} h5 {[%emt 0:00:00]} 31. Kf3 {[%emt 0:00:00]} 1/2-1/2

[Event "Turkish Super League 2019"]
[Site "Konya"]
[Date "2019.07.26"]
[Round "11"]
[White "Tarlabasi, Emirhan"]
[Black "Kerigan, Demre"]
[Result "1/2-1/2"]
[ECO "B07"]
[WhiteElo "2352"]
[BlackElo "2398"]
[Annotator "NA"]
[PlyCount "99"]
[EventDate "2019.07.17"]
[EventType "team-tourn"]
[EventCountry "TUR"]
[SourceTitle "playchess.com"]
[Source "ChessBase"]
[SourceQuality "1"]
[TimeControl "40/5400+30:1800+30"]

1. d4 g6 2. Nf3 Nf6 3. Nbd2 Bg7 4. e4 d6 5. Bd3 O-O 6. O-O c5 7. c3 cxd4 8. cxd4 Nc6 9. h3 a5 10. a4 Nb4 11. Be2 Bd7 12. e5 Nfd5 13. Nc4 Bf5 14. Ra3 Qc7 15. exd6 exd6 16. Ne3 Be4 17. Nxd5 Nxd5 18. Bd2 {[%emt 0:56:00]} Rac8 {[%emt 1:11:00]} 19. Re1 {[%emt 0:07:30]} Bc2 {[%emt 0:07:30]} 20. Qa1 {[%emt 0:00:30]} Qb6 {[%emt 0:02:29]} 21. Bb5 {[%emt 0:05:30]} Nc7 {[%emt 0:02:42]} 22. Bf1 {[%emt 0:05:30]} Ne6 {[%emt 0:01:42]} 23. Rxe6 {[%emt 0:24:35]} fxe6 {[%emt 0:00:25]} 24. Qe1 {[%emt 0:00:56]} Kh8 {[%emt 0:07:23]} 25. Bb5 {[%emt 0:00:28]} Qd8 {[%emt 0:05:20]} 26. Bxa5 {[%emt 0:00:32]} b6 {[%emt 0:02:02]} 27. Bb4 {[%emt 0:00:20]} Rf6 {[%emt 0:00:49]} 28. Re3 {[%emt 0:00:36]} d5 {[%emt 0:01:19]} 29. Ng5 {[%emt 0:01:23]} Bf5 {[%emt 0:00:32]} 30. g4 {[%emt 0:00:20]} Bh6 {[%emt 0:00:20]} 31. gxf5 {[%emt 0:00:47]} Bxg5 {[%emt 0:00:06]} 32. fxe6 {[%emt 0:00:23]} Qg8 {[%emt 0:01:12]} 33. Re5 {[%emt 0:00:38]} Bh4 {[%emt 0:00:48]} 34. e7 {[%emt 0:00:25]} Bxf2+ {[%emt 0:00:28]} 35. Qxf2 {[%emt 0:00:05]} Rxf2 {[%emt 0:00:07]} 36. e8=Q {[%emt 0:00:57]} Rxe8 {[%emt 0:01:04]} 37. Rxe8 {[%emt 0:00:02]} Qxe8 {[%emt 0:00:39]} 38. Bxe8 {[%emt 0:00:04]} Rxb2 {[%emt 0:00:16]} 39. Bd6 {[%emt 0:00:05]} Kg7 {[%emt 0:00:10]} 40. Bc6 {[%emt 0:00:00]} Ra2 {[%emt 0:00:00]} 41. Bc7 {[%emt 0:01:54]} Kf6 {[%emt 0:09:07]} 42. Bxb6 {[%emt 0:02:30]} Kf5 {[%emt 0:00:30]} 43. a5 {[%emt 0:02:30]} Ke4 {[%emt 0:00:30]} 44. Bb5 {[%emt 0:00:30]} Kf3 {[%emt 0:02:30]} 45. h4 {[%emt 0:13:07]} Rg2+ {[%emt 0:11:40]} 46. Kh1 {[%emt 0:00:53]} Kf2 {[%emt 0:00:07]} 47. Bc7 {[%emt 0:01:07]} Rg4 {[%emt 0:00:07]} 48. a6 {[%emt 0:09:11]} Rxh4+ {[%emt 0:00:06]} 49. Bh2 {[%emt 0:00:00]} Re4 {[%emt 0:00:38]} 50. Bg1+ {[%emt 0:00:05]} 1/2-1/2

[Event "Turkish Super League 2019"]
[Site "Konya"]
[Date "2019.07.26"]
[Round "11"]
[White "Savina, Anastasia"]
[Black "Buksa, Nataliya"]
[Result "0-1"]
[ECO "D29"]
[WhiteElo "2344"]
[BlackElo "2379"]
[Annotator "NA"]
[PlyCount "108"]
[EventDate "2019.07.17"]
[EventType "team-tourn"]
[EventCountry "TUR"]
[SourceTitle "playchess.com"]
[Source "ChessBase"]
[SourceQuality "1"]
[TimeControl "40/5400+30:1800+30"]

1. d4 d5 2. c4 e6 3. Nc3 a6 4. e3 dxc4 5. Bxc4 b5 6. Bb3 Bb7 7. Nf3 Nf6 8. Qe2 Nbd7 9. O-O c5 10. Rd1 Qc7 11. e4 cxd4 12. Nxd4 b4 13. Nd5 exd5 14. exd5+ Kd8 {[%emt 0:57:00]} 15. Nc6+ {[%emt 1:13:30]} Bxc6 {[%emt 0:08:30]} 16. dxc6 {[%emt 0:00:30]} Qxc6 {[%emt 0:00:30]} 17. Bg5 {[%emt 0:04:31]} Rc8 {[%emt 0:14:59]} 18. Rac1 {[%emt 0:18:15]} Bc5 {[%emt 0:01:14]} 19. Bxf6+ {[%emt 0:02:05]} Qxf6 {[%emt 0:06:47]} 20. Ba4 {[%emt 0:00:35]} Bxf2+ {[%emt 0:07:39]} 21. Qxf2 {[%emt 0:00:30]} Qxf2+ {[%emt 0:00:30]} 22. Kxf2 {[%emt 0:00:30]} Rxc1 {[%emt 0:00:30]} 23. Rxc1 {[%emt 0:00:30]} Ne5 {[%emt 0:00:30]} 24. Ke3 {[%emt 0:00:00]} Ke7 {[%emt 0:00:17]} 25. Rc7+ {[%emt 0:00:27]} Kf6 {[%emt 0:02:43]} 26. Ra7 {[%emt 0:00:16]} Nc4+ {[%emt 0:00:19]} 27. Kd4 {[%emt 0:01:37]} Nxb2 {[%emt 0:00:30]} 28. Rxa6+ {[%emt 0:00:30]} Kg5 {[%emt 0:00:00]} 29. Ra5+ {[%emt 0:00:33]} f5 {[%emt 0:00:00]} 30. Bc2 {[%emt 0:00:07]} g6 {[%emt 0:00:03]} 31. Rd5 {[%emt 0:00:31]} Re8 {[%emt 0:00:48]} 32. Bb3 {[%emt 0:00:52]} Re2 {[%emt 0:00:09]} 33. Kc5 {[%emt 0:00:00]} Rxg2 {[%emt 0:00:52]} 34. Kxb4 {[%emt 0:00:00]} Rxh2 {[%emt 0:00:00]} 35. Kc3 {[%emt 0:00:13]} Na4+ {[%emt 0:01:46]} 36. Bxa4 {[%emt 0:00:51]} Rxa2 {[%emt 0:00:07]} 37. Bc2 {[%emt 0:00:01]} Ra7 {[%emt 0:00:38]} 38. Kd2 {[%emt 0:00:30]} Re7 {[%emt 0:00:00]} 39. Bd3 {[%emt 0:01:31]} h5 {[%emt 0:00:00]} 40. Rd8 {[%emt 0:00:00]} h4 {[%emt 0:00:00]} 41. Be2 {[%emt 0:09:35]} Kf4 {[%emt 0:03:09]} 42. Ke1 {[%emt 0:02:30]} g5 {[%emt 0:00:30]} 43. Kf2 {[%emt 0:02:50]} g4 {[%emt 0:01:30]} 44. Bd3 {[%emt 0:03:21]} Re5 {[%emt 0:01:30]} 45. Rh8 {[%emt 0:08:25]} Rd5 {[%emt 0:00:30]} 46. Bf1 {[%emt 0:03:39]} Rd2+ {[%emt 0:00:30]} 47. Kg1 {[%emt 0:01:59]} Kg3 {[%emt 0:01:30]} 48. Re8 {[%emt 0:02:07]} h3 {[%emt 0:06:30]} 49. Re3+ {[%emt 0:00:12]} Kf4 {[%emt 0:00:30]} 50. Ra3 {[%emt 0:00:55]} Rd1 {[%emt 0:00:30]} 51. Ra2 {[%emt 0:00:30]} g3 {[%emt 0:01:30]} 52. Ra4+ {[%emt 0:00:30]} Kg5 {[%emt 0:00:00]} 53. Ra3 {[%emt 0:00:30]} g2 {[%emt 0:01:00]} 54. Rg3+ {[%emt 0:00:12]} Kf4 {[%emt 0:00:00]} 0-1

[Event "Turkish Super League 2019"]
[Site "Konya"]
[Date "2019.07.26"]
[Round "11"]
[White "Kamer, Kayra"]
[Black "Samani, Yamac"]
[Result "1-0"]
[ECO "D56"]
[WhiteElo "2340"]
[BlackElo "2266"]
[Annotator "NA"]
[PlyCount "77"]
[EventDate "2019.07.17"]
[EventType "team-tourn"]
[EventCountry "TUR"]
[SourceTitle "playchess.com"]
[Source "ChessBase"]
[SourceQuality "1"]
[TimeControl "40/5400+30:1800+30"]

1. Nf3 Nf6 2. c4 e6 3. d4 d5 4. Nc3 Be7 5. Bg5 h6 6. Bh4 O-O 7. e3 Ne4 8. Bxe7 Qxe7 9. Bd3 Nxc3 10. bxc3 dxc4 11. Bxc4 b6 12. Qe2 Bb7 13. O-O c5 14. e4 Nc6 15. Rad1 Rfd8 16. Rfe1 Rac8 17. Rd2 cxd4 18. cxd4 Qb4 19. Rb2 Qc3 20. d5 Nd4 21. Nxd4 Qxc4 22. Qd1 exd5 23. e5 Kh8 24. Rb3 Qa4 25. Qd2 Rc4 26. Nf5 Rf4 27. Nd6 Bc8 28. g3 Rd4 {[%emt 1:37:17]} 29. Nxf7+ {[%emt 0:29:30]} Kg8 {[%emt 0:00:30]} 30. Qc2 {[%emt 0:00:30]} Rf8 {[%emt 0:00:30]} 31. e6 {[%emt 0:05:30]} Bxe6 {[%emt 0:06:13]} 32. Nxh6+ {[%emt 0:00:30]} Kh8 {[%emt 0:00:03]} 33. Rxe6 {[%emt 0:00:30]} Qd7 {[%emt 0:00:30]} 34. Rbe3 {[%emt 0:02:30]} gxh6 {[%emt 0:00:56]} 35. Rxh6+ {[%emt 0:01:30]} Kg8 {[%emt 0:00:02]} 36. Rg6+ {[%emt 0:00:30]} Kh8 {[%emt 0:00:12]} 37. Ree6 {[%emt 0:00:30]} Rf7 {[%emt 0:01:25]} 38. Qc3 {[%emt 0:00:30]} Qa4 {[%emt 0:00:45]} 39. Qc8+ {[%emt 0:00:00]} 1-0

[Event "Turkish Super League 2019"]
[Site "Konya"]
[Date "2019.07.26"]
[Round "11"]
[White "Ozturk, Kubra"]
[Black "Maltsevskaya, Aleksandra"]
[Result "1-0"]
[ECO "E97"]
[WhiteElo "2317"]
[BlackElo "2294"]
[Annotator "NA"]
[PlyCount "87"]
[EventDate "2019.07.17"]
[EventType "team-tourn"]
[EventCountry "TUR"]
[SourceTitle "playchess.com"]
[Source "ChessBase"]
[SourceQuality "1"]
[TimeControl "40/5400+30:1800+30"]

1. d4 Nf6 2. c4 g6 3. Nc3 Bg7 4. e4 d6 5. Nf3 O-O 6. Be2 e5 7. O-O Nc6 8. dxe5 dxe5 9. Bg5 Qxd1 10. Rfxd1 h6 11. Be3 Bg4 12. h3 Bxf3 13. Bxf3 Rfd8 14. Rxd8+ Rxd8 15. Nb5 Nd4 16. Nxc7 Nc2 17. Rd1 Rxd1+ 18. Bxd1 Nxe3 19. fxe3 Nxe4 20. Bf3 Nc5 21. b4 e4 22. bxc5 {[%emt 1:24:14]} exf3 {[%emt 0:42:00]} 23. Nb5 {[%emt 0:00:30]} Bf8 {[%emt 0:00:30]} 24. c6 {[%emt 0:00:30]} bxc6 {[%emt 0:00:30]} 25. Nxa7 {[%emt 0:00:30]} Bc5 {[%emt 0:00:30]} 26. Nxc6 {[%emt 0:00:30]} Bxe3+ {[%emt 0:00:30]} 27. Kf1 {[%emt 0:00:30]} fxg2+ {[%emt 0:00:30]} 28. Kxg2 {[%emt 0:00:30]} f5 {[%emt 0:00:30]} 29. a4 {[%emt 0:00:29]} Kf7 {[%emt 0:06:30]} 30. a5 {[%emt 0:00:01]} g5 {[%emt 0:08:30]} 31. a6 {[%emt 0:00:59]} Ke6 {[%emt 0:05:30]} 32. a7 {[%emt 0:00:27]} Bxa7 {[%emt 0:00:30]} 33. Nxa7 {[%emt 0:00:30]} h5 {[%emt 0:06:30]} 34. Nb5 {[%emt 0:03:16]} g4 {[%emt 0:12:30]} 35. h4 {[%emt 0:00:28]} f4 {[%emt 0:00:30]} 36. Nc3 {[%emt 0:10:11]} Kd6 {[%emt 0:05:31]} 37. Kf2 {[%emt 0:00:57]} Ke6 {[%emt 0:05:15]} 38. c5 {[%emt 0:00:31]} Ke5 {[%emt 0:00:13]} 39. c6 {[%emt 0:00:43]} Kd6 {[%emt 0:01:34]} 40. c7 {[%emt 0:00:00]} Kd7 {[%emt 0:00:00]} 41. Nd5 {[%emt 0:02:44]} f3 {[%emt 0:02:27]} 42. Nf6+ {[%emt 0:01:30]} Kxc7 {[%emt 0:00:30]} 43. Nxh5 {[%emt 0:00:30]} Kd6 {[%emt 0:00:30]} 44. Nf6 {[%emt 0:00:00]} 1-0

[Event "Turkish Super League 2019"]
[Site "Konya"]
[Date "2019.07.26"]
[Round "11"]
[White "Injac, Teodora"]
[Black "Yildiz Kadioglu, Betul Cemre"]
[Result "0-1"]
[ECO "A07"]
[WhiteElo "2305"]
[BlackElo "2290"]
[Annotator "NA"]
[PlyCount "76"]
[EventDate "2019.07.17"]
[EventType "team-tourn"]
[EventCountry "TUR"]
[SourceTitle "playchess.com"]
[Source "ChessBase"]
[SourceQuality "1"]
[TimeControl "40/5400+30:1800+30"]

1. Nf3 d5 2. g3 Nf6 3. Bg2 b5 4. a4 b4 5. c4 e6 6. cxd5 exd5 7. O-O Bd6 8. d4 O-O 9. Nbd2 Nbd7 10. a5 Ba6 11. Re1 Re8 12. Nh4 g6 13. e4 dxe4 14. Nxe4 Nxe4 15. Bxe4 Rb8 {[%emt 0:55:30]} 16. Bh6 {[%emt 1:12:00]} Nf6 {[%emt 0:07:30]} 17. Bf3 {[%emt 0:04:30]} Rxe1+ {[%emt 0:05:30]} 18. Qxe1 {[%emt 0:00:30]} Qe8 {[%emt 0:00:30]} 19. Qd2 {[%emt 0:03:20]} Qb5 {[%emt 0:00:30]} 20. d5 {[%emt 0:04:17]} Qd3 {[%emt 0:08:30]} 21. Qxd3 {[%emt 0:10:30]} Bxd3 {[%emt 0:00:30]} 22. Be3 {[%emt 0:01:29]} a6 {[%emt 0:00:30]} 23. Bd4 {[%emt 0:00:36]} Nd7 {[%emt 0:01:30]} 24. Rd1 {[%emt 0:00:19]} Bb5 {[%emt 0:00:30]} 25. Bg2 {[%emt 0:02:52]} Nc5 {[%emt 0:01:30]} 26. Nf3 {[%emt 0:01:11]} Nb3 {[%emt 0:00:45]} 27. Bf6 {[%emt 0:00:03]} Nxa5 {[%emt 0:06:59]} 28. Nd4 {[%emt 0:00:01]} Bc4 {[%emt 0:04:08]} 29. Nc6 {[%emt 0:02:12]} Nxc6 {[%emt 0:04:52]} 30. dxc6 {[%emt 0:00:01]} Re8 {[%emt 0:01:00]} 31. Bh3 {[%emt 0:00:53]} Bb5 {[%emt 0:01:20]} 32. Bd7 {[%emt 0:00:30]} Re2 {[%emt 0:00:45]} 33. Bg4 {[%emt 0:00:19]} Rc2 {[%emt 0:00:28]} 34. h4 {[%emt 0:00:46]} h5 {[%emt 0:01:06]} 35. Re1 {[%emt 0:00:29]} hxg4 {[%emt 0:01:29]} 36. Re8+ {[%emt 0:00:30]} Bf8 {[%emt 0:00:08]} 37. Be7 {[%emt 0:00:02]} Rc1+ {[%emt 0:00:02]} 38. Kh2 {[%emt 0:00:00]} Rh1+ {[%emt 0:00:10]} 0-1

[Event "Turkish Super League 2019"]
[Site "Konya"]
[Date "2019.07.26"]
[Round "11"]
[White "Sevgi, Volkan"]
[Black "Erdogan, Anil Berk"]
[Result "1-0"]
[ECO "A04"]
[WhiteElo "2302"]
[BlackElo "2116"]
[Annotator "NA"]
[PlyCount "81"]
[EventDate "2019.07.17"]
[EventType "team-tourn"]
[EventCountry "TUR"]
[SourceTitle "playchess.com"]
[Source "ChessBase"]
[SourceQuality "1"]
[TimeControl "40/5400+30:1800+30"]

1. Nf3 g6 2. g3 Bg7 3. Bg2 e5 4. e4 Nc6 5. O-O Nge7 6. c4 d6 7. Nc3 O-O 8. d3 h6 9. Be3 Bg4 10. Nd5 Nd4 11. Bxd4 exd4 12. Qb3 Nxd5 13. cxd5 Bxf3 14. Bxf3 c5 {[%emt 1:17:00]} 15. Qxb7 {[%emt 1:05:30]} Qb8 {[%emt 0:08:38]} 16. Qa6 {[%emt 0:01:30]} Qb6 {[%emt 0:02:46]} 17. Qa3 {[%emt 0:03:30]} a5 {[%emt 0:01:43]} 18. Rfc1 {[%emt 0:05:30]} Qb4 {[%emt 0:04:41]} 19. Qxb4 {[%emt 0:11:56]} axb4 {[%emt 0:00:02]} 20. Kg2 {[%emt 0:01:12]} Rfe8 {[%emt 0:03:29]} 21. a4 {[%emt 0:02:57]} bxa3 {[%emt 0:02:00]} 22. bxa3 {[%emt 0:00:30]} Reb8 {[%emt 0:00:30]} 23. Bd1 {[%emt 0:00:30]} Bf6 {[%emt 0:00:30]} 24. a4 {[%emt 0:00:30]} Bd8 {[%emt 0:00:30]} 25. Rcb1 {[%emt 0:00:30]} Ba5 {[%emt 0:00:30]} 26. Rb5 {[%emt 0:00:30]} Rxb5 {[%emt 0:00:30]} 27. axb5 {[%emt 0:00:30]} Ra7 {[%emt 0:00:00]} 28. f4 {[%emt 0:02:38]} f6 {[%emt 0:00:17]} 29. e5 {[%emt 0:01:54]} fxe5 {[%emt 0:01:16]} 30. fxe5 {[%emt 0:00:05]} dxe5 {[%emt 0:00:00]} 31. d6 {[%emt 0:03:54]} Kf8 {[%emt 0:00:34]} 32. Kf3 {[%emt 0:00:49]} Ke8 {[%emt 0:00:31]} 33. Ke4 {[%emt 0:00:22]} Bb6 {[%emt 0:00:16]} 34. Ra6 {[%emt 0:00:49]} Rb7 {[%emt 0:00:01]} 35. Kxe5 {[%emt 0:01:02]} Bd8 {[%emt 0:00:08]} 36. Bf3 {[%emt 0:00:40]} Rb8 {[%emt 0:00:31]} 37. Ra7 {[%emt 0:01:06]} Kf8 {[%emt 0:00:13]} 38. Bd5 {[%emt 0:00:03]} Bb6 {[%emt 0:02:03]} 39. Rf7+ {[%emt 0:00:30]} Ke8 {[%emt 0:00:00]} 40. Ke6 {[%emt 0:00:00]} c4 {[%emt 0:00:00]} 41. Bc6+ {[%emt 0:00:33]} 1-0